[Event "Early-Titled-Tuesday-Blitz-April-02-2024"]
[Site "Chess.com"]
[Date "2024.04.02"]
[Round "9"]
[White "Maxfan2008"]
[Black "PavelChernomordik"]
[Result "1-0"]
[WhiteElo "2585"]
[BlackElo "2433"]
[TimeControl "180+1"]
[EndTime "9:43:59 PDT"]
[Termination "Maxfan2008 won by resignation"]

1. d4 {[%clk 0:03:00.9]} 1... g6 {[%clk 0:02:59.6]} 2. c4 {[%clk 0:02:59]} 2...
Bg7 {[%clk 0:02:59.9]} 3. Nf3 {[%clk 0:02:59.3]} 3... d6 {[%clk 0:02:59.9]} 4.
g3 {[%clk 0:02:59.6]} 4... Nf6 {[%clk 0:02:57.6]} 5. Bg2 {[%clk 0:02:59.9]} 5...
O-O {[%clk 0:02:58]} 6. O-O {[%clk 0:02:58.9]} 6... c6 {[%clk 0:02:58.4]} 7. Nc3
{[%clk 0:02:59.1]} 7... a6 {[%clk 0:02:58.5]} 8. e4 {[%clk 0:02:58.7]} 8... Nfd7
{[%clk 0:02:58.1]} 9. Be3 {[%clk 0:02:58.4]} 9... b5 {[%clk 0:02:57.8]} 10. Qe2
{[%clk 0:02:58.6]} 10... bxc4 {[%clk 0:02:56.6]} 11. Qxc4 {[%clk 0:02:58.7]}
11... a5 {[%clk 0:02:57]} 12. Rfd1 {[%clk 0:02:56.8]} 12... Ba6 {[%clk
0:02:55.4]} 13. Qb3 {[%clk 0:02:53.9]} 13... Nb6 {[%clk 0:02:54.5]} 14. Rac1
{[%clk 0:02:51]} 14... N8d7 {[%clk 0:02:52.3]} 15. Na4 {[%clk 0:02:46.1]} 15...
Bb5 {[%clk 0:02:47.5]} 16. Nxb6 {[%clk 0:02:44.2]} 16... Nxb6 {[%clk 0:02:45.7]}
17. d5 {[%clk 0:02:42.1]} 17... a4 {[%clk 0:02:40.3]} 18. Qb4 {[%clk 0:02:26.6]}
18... Rb8 {[%clk 0:02:30.5]} 19. dxc6 {[%clk 0:02:20.2]} 19... Qc7 {[%clk
0:02:25]} 20. Qxb5 {[%clk 0:02:18.3]} 20... e6 {[%clk 0:02:17.3]} 21. e5 {[%clk
0:02:10.1]} 21... Nd5 {[%clk 0:02:13.6]} 22. exd6 {[%clk 0:02:03]} 22... Qxd6
{[%clk 0:02:12.4]} 23. Bf4 {[%clk 0:01:54.1]} 23... Rxb5 {[%clk 0:02:03.6]} 24.
Bxd6 {[%clk 0:01:50.1]} 24... Rc8 {[%clk 0:02:02.9]} 25. Be5 {[%clk 0:01:48.1]}
25... Bh6 {[%clk 0:01:52.4]} 26. Rc4 {[%clk 0:01:41]} 26... Nb6 {[%clk
0:01:49.8]} 27. Rcd4 {[%clk 0:01:37.5]} 27... Nd5 {[%clk 0:01:42.6]} 28. Bf1
{[%clk 0:01:31.5]} 28... Rc5 {[%clk 0:01:38.2]} 29. c7 {[%clk 0:01:29.5]} 29...
f6 {[%clk 0:01:34.3]} 30. Ba6 {[%clk 0:01:23.6]} 30... fxe5 {[%clk 0:01:16.8]}
31. Bxc8 {[%clk 0:01:23.1]} 31... Nxc7 {[%clk 0:01:01]} 32. Rd8+ {[%clk
0:01:17.7]} 32... Kf7 {[%clk 0:01:00.3]} 33. R8d7+ {[%clk 0:01:12.1]} 33... Kf6
{[%clk 0:00:51.3]} 34. Rxh7 {[%clk 0:01:11.4]} 34... Bf8 {[%clk 0:00:40.7]} 35.
Rdd7 {[%clk 0:01:10.9]} 1-0

[Event "Early-Titled-Tuesday-Blitz-April-02-2024"]
[Site "Chess.com"]
[Date "2024.04.02"]
[Round "9"]
[White "BashirliSaadat"]
[Black "ladytitan"]
[Result "1-0"]
[WhiteElo "2355"]
[BlackElo "2183"]
[TimeControl "180+1"]
[EndTime "9:44:03 PDT"]
[Termination "BashirliSaadat won by resignation"]

1. d4 {[%clk 0:03:00.9]} 1... d5 {[%clk 0:02:59.8]} 2. e3 {[%clk 0:03:00.7]}
2... Nf6 {[%clk 0:02:59.3]} 3. Bd3 {[%clk 0:03:00.3]} 3... c6 {[%clk 0:02:55.7]}
4. f4 {[%clk 0:02:59.8]} 4... g6 {[%clk 0:02:49.8]} 5. Nf3 {[%clk 0:02:58.4]}
5... Bf5 {[%clk 0:02:46.4]} 6. O-O {[%clk 0:02:57.1]} 6... Bg7 {[%clk
0:02:44.3]} 7. Nbd2 {[%clk 0:02:56.1]} 7... O-O {[%clk 0:02:41.8]} 8. Ne5 {[%clk
0:02:56.6]} 8... Nbd7 {[%clk 0:02:37.7]} 9. Ndf3 {[%clk 0:02:55.7]} 9... Ne4
{[%clk 0:02:35.9]} 10. g4 {[%clk 0:02:55.1]} 10... Be6 {[%clk 0:02:09.1]} 11.
Bxe4 {[%clk 0:02:46.2]} 11... dxe4 {[%clk 0:02:09]} 12. Nd2 {[%clk 0:02:44.8]}
12... Nxe5 {[%clk 0:02:05.2]} 13. dxe5 {[%clk 0:02:41.9]} 13... Qc8 {[%clk
0:01:57.1]} 14. h3 {[%clk 0:02:39.1]} 14... h5 {[%clk 0:01:53.4]} 15. f5 {[%clk
0:02:28]} 15... gxf5 {[%clk 0:01:52.8]} 16. gxh5 {[%clk 0:02:26.6]} 16... Bxe5
{[%clk 0:01:50.8]} 17. Kh1 {[%clk 0:02:26]} 17... Kh8 {[%clk 0:01:47.3]} 18. Qe2
{[%clk 0:02:24.9]} 18... Rg8 {[%clk 0:01:44.7]} 19. Qf2 {[%clk 0:02:23.3]} 19...
Rg3 {[%clk 0:01:35.2]} 20. Qh2 {[%clk 0:02:10.7]} 20... f6 {[%clk 0:01:29.7]}
21. Nb3 {[%clk 0:01:36.2]} 21... f4 {[%clk 0:01:07.6]} 22. exf4 {[%clk
0:01:25.8]} 22... Rxh3 {[%clk 0:01:04.3]} 23. fxe5 {[%clk 0:01:24.4]} 23...
Rxh2+ {[%clk 0:01:04.5]} 24. Kxh2 {[%clk 0:01:24]} 24... Qc7 {[%clk 0:00:56.5]}
25. Bf4 {[%clk 0:01:20.9]} 25... fxe5 {[%clk 0:00:56.5]} 26. Bg3 {[%clk
0:01:17.5]} 26... Rg8 {[%clk 0:00:53.9]} 27. Nc5 {[%clk 0:01:15.2]} 27... Bd5
{[%clk 0:00:50.2]} 28. Rf5 {[%clk 0:01:14.1]} 28... Qb6 {[%clk 0:00:24.3]} 29.
Nd7 {[%clk 0:01:02.1]} 29... Qxb2 {[%clk 0:00:19.2]} 30. Bxe5+ {[%clk
0:01:00.9]} 1-0

[Event "Early-Titled-Tuesday-Blitz-April-02-2024"]
[Site "Chess.com"]
[Date "2024.04.02"]
[Round "9"]
[White "edgarhay012"]
[Black "Aisen1011"]
[Result "1-0"]
[WhiteElo "2623"]
[BlackElo "2499"]
[TimeControl "180+1"]
[EndTime "9:44:05 PDT"]
[Termination "edgarhay012 won by resignation"]

1. e4 {[%clk 0:03:00.9]} 1... d5 {[%clk 0:02:59.6]} 2. exd5 {[%clk 0:03:00.8]}
2... Qxd5 {[%clk 0:03:00.1]} 3. Nc3 {[%clk 0:03:01.4]} 3... Qe5+ {[%clk
0:03:00.4]} 4. Nge2 {[%clk 0:02:58]} 4... Nf6 {[%clk 0:03:00.1]} 5. d4 {[%clk
0:02:58.2]} 5... Qa5 {[%clk 0:03:00.5]} 6. Bd2 {[%clk 0:02:58.2]} 6... Bf5
{[%clk 0:02:58]} 7. Ng3 {[%clk 0:02:57.8]} 7... Bg6 {[%clk 0:02:58.2]} 8. Bc4
{[%clk 0:02:57.8]} 8... c6 {[%clk 0:02:58.4]} 9. O-O {[%clk 0:02:56.8]} 9... e6
{[%clk 0:02:57.5]} 10. Re1 {[%clk 0:02:56.4]} 10... Be7 {[%clk 0:02:57.2]} 11.
Nd5 {[%clk 0:02:50.9]} 11... Qd8 {[%clk 0:02:56.1]} 12. Nxe7 {[%clk 0:02:51]}
12... Qxe7 {[%clk 0:02:56.6]} 13. c3 {[%clk 0:02:51.7]} 13... O-O {[%clk
0:02:54]} 14. Qf3 {[%clk 0:02:50.4]} 14... h6 {[%clk 0:02:46.8]} 15. Rad1 {[%clk
0:02:49.7]} 15... Nbd7 {[%clk 0:02:46.7]} 16. Bb3 {[%clk 0:02:42.8]} 16... Rfd8
{[%clk 0:02:41.6]} 17. Bf4 {[%clk 0:02:34.3]} 17... Nb6 {[%clk 0:02:38.3]} 18.
h3 {[%clk 0:02:33.8]} 18... a5 {[%clk 0:02:38.1]} 19. a3 {[%clk 0:02:32.4]}
19... a4 {[%clk 0:02:30.7]} 20. Ba2 {[%clk 0:02:32.6]} 20... Bc2 {[%clk
0:02:30.4]} 21. Rd2 {[%clk 0:02:32.7]} 21... Bb3 {[%clk 0:02:27.1]} 22. Bb1
{[%clk 0:02:32.9]} 22... Bd5 {[%clk 0:01:27.8]} 23. Qd3 {[%clk 0:02:32.1]} 23...
Nc4 {[%clk 0:01:17.3]} 24. Rde2 {[%clk 0:02:30.5]} 24... Nd6 {[%clk 0:00:47.3]}
25. Be5 {[%clk 0:02:18]} 25... Bc4 {[%clk 0:00:36.3]} 26. Bxd6 {[%clk
0:02:16.7]} 26... Bxd3 {[%clk 0:00:31.5]} 27. Bxe7 {[%clk 0:02:16.4]} 27... Bxe2
{[%clk 0:00:20]} 28. Bxd8 {[%clk 0:02:14.8]} 28... Rxd8 {[%clk 0:00:15.2]} 29.
Rxe2 {[%clk 0:02:13.3]} 29... c5 {[%clk 0:00:15.8]} 30. Rd2 {[%clk 0:02:08.9]}
30... b6 {[%clk 0:00:14.2]} 31. Bc2 {[%clk 0:02:08.8]} 31... b5 {[%clk
0:00:12.7]} 32. Kf1 {[%clk 0:02:08.5]} 32... c4 {[%clk 0:00:10.4]} 33. Ne4
{[%clk 0:02:08.6]} 33... Nd5 {[%clk 0:00:11]} 34. Nc5 {[%clk 0:02:07.7]} 34...
Kf8 {[%clk 0:00:07.6]} 35. Be4 {[%clk 0:02:07.4]} 35... Nf6 {[%clk 0:00:07.5]}
36. Bc6 {[%clk 0:02:07.3]} 36... e5 {[%clk 0:00:06.1]} 37. Bxb5 {[%clk
0:02:05.7]} 37... exd4 {[%clk 0:00:06.6]} 38. Rxd4 {[%clk 0:02:06.2]} 38... Rb8
{[%clk 0:00:06.8]} 39. Bxc4 {[%clk 0:01:51.4]} 39... Rxb2 {[%clk 0:00:07.7]} 40.
Nd7+ {[%clk 0:01:50.3]} 40... Ke7 {[%clk 0:00:06.1]} 41. Nxf6 {[%clk 0:01:50.3]}
41... Kxf6 {[%clk 0:00:05.7]} 42. Rd7 {[%clk 0:01:49.9]} 1-0

[Event "Early-Titled-Tuesday-Blitz-April-02-2024"]
[Site "Chess.com"]
[Date "2024.04.02"]
[Round "9"]
[White "NastyaHn"]
[Black "Shuvalov"]
[Result "0-1"]
[WhiteElo "2455"]
[BlackElo "2597"]
[TimeControl "180+1"]
[EndTime "9:44:05 PDT"]
[Termination "Shuvalov won by resignation"]

1. Nc3 {[%clk 0:03:00.9]} 1... e6 {[%clk 0:02:58.1]} 2. d4 {[%clk 0:02:52.9]}
2... Nf6 {[%clk 0:02:55.6]} 3. Bf4 {[%clk 0:02:47.8]} 3... a6 {[%clk 0:02:55.2]}
4. Nf3 {[%clk 0:02:40.9]} 4... b5 {[%clk 0:02:53]} 5. a4 {[%clk 0:02:28.8]} 5...
b4 {[%clk 0:02:51.9]} 6. Nb1 {[%clk 0:02:28.4]} 6... Bb7 {[%clk 0:02:50.8]} 7.
Nbd2 {[%clk 0:02:25.9]} 7... c5 {[%clk 0:02:47.6]} 8. e3 {[%clk 0:02:25]} 8...
Nc6 {[%clk 0:02:45]} 9. Be2 {[%clk 0:02:21.1]} 9... Be7 {[%clk 0:02:43.8]} 10.
O-O {[%clk 0:02:21]} 10... O-O {[%clk 0:02:44]} 11. Nb3 {[%clk 0:02:15.4]} 11...
cxd4 {[%clk 0:02:43.2]} 12. exd4 {[%clk 0:02:14.6]} 12... Na5 {[%clk 0:02:40.2]}
13. Nc5 {[%clk 0:01:50.7]} 13... Qb6 {[%clk 0:02:20.3]} 14. Nxb7 {[%clk
0:01:44.6]} 14... Qxb7 {[%clk 0:02:21.2]} 15. Bd3 {[%clk 0:01:39.1]} 15... Rfc8
{[%clk 0:02:17.6]} 16. b3 {[%clk 0:01:32.1]} 16... Nd5 {[%clk 0:02:06.1]} 17.
Bd2 {[%clk 0:01:28.1]} 17... h6 {[%clk 0:01:52.2]} 18. Qe1 {[%clk 0:01:13.6]}
18... f5 {[%clk 0:01:45.4]} 19. Ne5 {[%clk 0:00:55.5]} 19... Nc6 {[%clk
0:01:29.5]} 20. Nxc6 {[%clk 0:00:42.4]} 20... Qxc6 {[%clk 0:01:16.1]} 21. a5
{[%clk 0:00:32.4]} 21... Bf6 {[%clk 0:01:15.2]} 22. Bxb4 {[%clk 0:00:21]} 22...
Bxd4 {[%clk 0:01:12.6]} 23. Ra4 {[%clk 0:00:17.3]} 23... Nf4 {[%clk 0:01:06.4]}
24. Be4 {[%clk 0:00:07.9]} 24... fxe4 {[%clk 0:01:01.7]} 25. Bd2 {[%clk
0:00:05.3]} 25... e3 {[%clk 0:00:59.8]} 0-1

[Event "Early-Titled-Tuesday-Blitz-April-02-2024"]
[Site "Chess.com"]
[Date "2024.04.02"]
[Round "9"]
[White "FREDERICKtheMATE"]
[Black "VanRommel28"]
[Result "0-1"]
[WhiteElo "2682"]
[BlackElo "2529"]
[TimeControl "180+1"]
[EndTime "9:44:07 PDT"]
[Termination "VanRommel28 won by resignation"]

1. d4 {[%clk 0:03:00.9]} 1... g6 {[%clk 0:02:58.2]} 2. Nf3 {[%clk 0:03:01.5]}
2... d6 {[%clk 0:02:58.4]} 3. e4 {[%clk 0:03:02]} 3... Bg7 {[%clk 0:02:58.4]} 4.
c4 {[%clk 0:03:01.8]} 4... Bg4 {[%clk 0:02:55.9]} 5. Be2 {[%clk 0:03:01.6]} 5...
Nc6 {[%clk 0:02:54.8]} 6. Be3 {[%clk 0:03:01.2]} 6... e5 {[%clk 0:02:50.2]} 7.
d5 {[%clk 0:03:01.1]} 7... Bxf3 {[%clk 0:02:50.2]} 8. Bxf3 {[%clk 0:03:01]} 8...
Nd4 {[%clk 0:02:50.3]} 9. Nc3 {[%clk 0:03:00.7]} 9... c5 {[%clk 0:02:43]} 10.
dxc6 {[%clk 0:02:59.4]} 10... bxc6 {[%clk 0:02:43.9]} 11. h4 {[%clk 0:02:58.6]}
11... h5 {[%clk 0:02:42.1]} 12. Be2 {[%clk 0:02:51]} 12... Qb6 {[%clk 0:02:26]}
13. Qd2 {[%clk 0:02:49.2]} 13... Nf6 {[%clk 0:02:23.5]} 14. f3 {[%clk
0:02:48.2]} 14... Nc2+ {[%clk 0:02:18.3]} 15. Qxc2 {[%clk 0:02:47.5]} 15... Qxe3
{[%clk 0:02:18.5]} 16. Qd3 {[%clk 0:02:47.2]} 16... Qxd3 {[%clk 0:02:14.9]} 17.
Bxd3 {[%clk 0:02:48.1]} 17... Rb8 {[%clk 0:02:15.5]} 18. O-O-O {[%clk 0:02:48]}
18... Ke7 {[%clk 0:02:15.2]} 19. Kb1 {[%clk 0:02:43.1]} 19... Nd7 {[%clk
0:02:13.4]} 20. Be2 {[%clk 0:02:41]} 20... Nc5 {[%clk 0:02:12]} 21. b3 {[%clk
0:02:40]} 21... Bh6 {[%clk 0:02:07.2]} 22. Bd3 {[%clk 0:02:39.7]} 22... Be3
{[%clk 0:02:01.7]} 23. Bc2 {[%clk 0:02:38]} 23... a5 {[%clk 0:01:59.4]} 24. Ne2
{[%clk 0:02:34.2]} 24... Rb7 {[%clk 0:01:56.7]} 25. Kb2 {[%clk 0:02:33.1]} 25...
Rhb8 {[%clk 0:01:53.7]} 26. Kc3 {[%clk 0:02:32.7]} 26... Ne6 {[%clk 0:01:49.4]}
27. Kd3 {[%clk 0:02:29.3]} 27... Bc5 {[%clk 0:01:45]} 28. Rb1 {[%clk 0:02:24.4]}
28... Bf2 {[%clk 0:01:43]} 29. Rbf1 {[%clk 0:02:22.8]} 29... Bc5 {[%clk
0:01:37.9]} 30. Rb1 {[%clk 0:02:22.6]} 30... f5 {[%clk 0:01:31.3]} 31. Kd2
{[%clk 0:02:15.7]} 31... Kf6 {[%clk 0:01:30.7]} 32. Rhf1 {[%clk 0:02:11.8]}
32... Rg7 {[%clk 0:01:14.4]} 33. Ng3 {[%clk 0:02:00.1]} 33... f4 {[%clk
0:00:57.8]} 34. Ne2 {[%clk 0:01:59.6]} 34... g5 {[%clk 0:00:58]} 35. g3 {[%clk
0:01:51.8]} 35... gxh4 {[%clk 0:00:51.8]} 36. gxh4 {[%clk 0:01:50.6]} 36... Rg2
{[%clk 0:00:43.2]} 37. Kd3 {[%clk 0:01:48.1]} 37... Rbg8 {[%clk 0:00:38.4]} 38.
Rh1 {[%clk 0:01:42]} 38... Bb4 {[%clk 0:00:38.5]} 39. Bd1 {[%clk 0:01:38.5]}
39... Rf2 {[%clk 0:00:34.2]} 40. Rh3 {[%clk 0:01:31.5]} 40... Rgg2 {[%clk
0:00:31.3]} 41. Rc1 {[%clk 0:01:18.4]} 41... Nd4 {[%clk 0:00:21.5]} 0-1

[Event "Early-Titled-Tuesday-Blitz-April-02-2024"]
[Site "Chess.com"]
[Date "2024.04.02"]
[Round "9"]
[White "joselito22"]
[Black "fmcabralis"]
[Result "1/2-1/2"]
[WhiteElo "2294"]
[BlackElo "2407"]
[TimeControl "180+1"]
[EndTime "9:44:08 PDT"]
[Termination "Game drawn by repetition"]

1. d4 {[%clk 0:03:00.9]} 1... d5 {[%clk 0:02:59.5]} 2. Nf3 {[%clk 0:02:59.6]}
2... Nf6 {[%clk 0:02:59.5]} 3. e3 {[%clk 0:02:59.5]} 3... e6 {[%clk 0:02:56.4]}
4. Bd3 {[%clk 0:02:58.4]} 4... Bd6 {[%clk 0:02:54.8]} 5. c3 {[%clk 0:02:57.8]}
5... O-O {[%clk 0:02:52.5]} 6. Ne5 {[%clk 0:02:56.4]} 6... c5 {[%clk 0:02:45.7]}
7. f4 {[%clk 0:02:51]} 7... Ne4 {[%clk 0:02:37.6]} 8. O-O {[%clk 0:02:44.4]}
8... f6 {[%clk 0:02:30.1]} 9. Nf3 {[%clk 0:02:43.5]} 9... Nc6 {[%clk 0:02:22.3]}
10. Nbd2 {[%clk 0:02:43.4]} 10... f5 {[%clk 0:02:04.3]} 11. Ne5 {[%clk
0:02:39.9]} 11... Nxe5 {[%clk 0:02:03.8]} 12. fxe5 {[%clk 0:02:38.8]} 12... Be7
{[%clk 0:02:04.5]} 13. Nxe4 {[%clk 0:02:36.6]} 13... fxe4 {[%clk 0:02:00.6]} 14.
Be2 {[%clk 0:02:36.2]} 14... Bd7 {[%clk 0:01:54.1]} 15. Bd2 {[%clk 0:02:35.1]}
15... Qb6 {[%clk 0:01:52.2]} 16. Qb3 {[%clk 0:02:33.3]} 16... c4 {[%clk
0:01:50.1]} 17. Qxb6 {[%clk 0:02:32.7]} 17... axb6 {[%clk 0:01:51]} 18. Rxf8+
{[%clk 0:02:20.7]} 18... Rxf8 {[%clk 0:01:49.1]} 19. Rf1 {[%clk 0:02:18.1]}
19... Ra8 {[%clk 0:01:42.6]} 20. a3 {[%clk 0:02:17.2]} 20... b5 {[%clk 0:01:33]}
21. Bd1 {[%clk 0:02:12.8]} 21... Rf8 {[%clk 0:01:28.6]} 22. Rxf8+ {[%clk
0:02:11.5]} 22... Kxf8 {[%clk 0:01:29.5]} 23. Be1 {[%clk 0:02:05.6]} 23... Bg5
{[%clk 0:01:27.5]} 24. Bf2 {[%clk 0:02:05.3]} 24... Kf7 {[%clk 0:01:27.5]} 25.
Kf1 {[%clk 0:02:05]} 25... Kg6 {[%clk 0:01:24]} 26. g3 {[%clk 0:01:59]} 26... h5
{[%clk 0:01:17.6]} 27. h4 {[%clk 0:01:56.7]} 27... Bh6 {[%clk 0:01:14.6]} 28.
Kg2 {[%clk 0:01:50.6]} 28... Be8 {[%clk 0:01:14.2]} 29. Be2 {[%clk 0:01:50]}
29... Kf5 {[%clk 0:01:12.3]} 30. Bd1 {[%clk 0:01:46.3]} 30... g5 {[%clk
0:01:02.7]} 31. Kh3 {[%clk 0:01:42.7]} 31... gxh4 {[%clk 0:00:48.3]} 32. gxh4
{[%clk 0:01:30.8]} 32... Kg6 {[%clk 0:00:37.5]} 33. Be2 {[%clk 0:01:27.6]} 33...
Kg7 {[%clk 0:00:29.3]} 34. Bg1 {[%clk 0:01:24.3]} 34... Bg6 {[%clk 0:00:28.8]}
35. Kg3 {[%clk 0:01:20.3]} 35... Kh7 {[%clk 0:00:26.2]} 36. Bf2 {[%clk
0:01:19.8]} 36... Bg7 {[%clk 0:00:18.9]} 37. Bg1 {[%clk 0:01:19.3]} 37... Bh6
{[%clk 0:00:16.4]} 38. Bf2 {[%clk 0:01:18.8]} 38... Bf8 {[%clk 0:00:15.7]} 39.
Bg1 {[%clk 0:01:18]} 39... Bh6 {[%clk 0:00:10.6]} 1/2-1/2

[Event "Early-Titled-Tuesday-Blitz-April-02-2024"]
[Site "Chess.com"]
[Date "2024.04.02"]
[Round "9"]
[White "dodorox"]
[Black "UK_23"]
[Result "0-1"]
[WhiteElo "2179"]
[BlackElo "2388"]
[TimeControl "180+1"]
[EndTime "9:44:11 PDT"]
[Termination "UK_23 won on time"]

1. d4 {[%clk 0:02:57.7]} 1... Nf6 {[%clk 0:02:58.8]} 2. c4 {[%clk 0:02:58]} 2...
g6 {[%clk 0:02:59.4]} 3. Nc3 {[%clk 0:02:55.9]} 3... Bg7 {[%clk 0:03:00]} 4. e4
{[%clk 0:02:54.7]} 4... O-O {[%clk 0:03:00.5]} 5. Nf3 {[%clk 0:02:54.3]} 5... d6
{[%clk 0:03:01.2]} 6. h3 {[%clk 0:02:54.5]} 6... Nbd7 {[%clk 0:02:59.7]} 7. Bg5
{[%clk 0:02:53.2]} 7... h6 {[%clk 0:02:59.2]} 8. Be3 {[%clk 0:02:52.3]} 8... e5
{[%clk 0:02:58.6]} 9. d5 {[%clk 0:02:52.4]} 9... Kh7 {[%clk 0:02:57.9]} 10. g4
{[%clk 0:02:51.4]} 10... a5 {[%clk 0:02:56]} 11. Be2 {[%clk 0:02:37.7]} 11...
Qe7 {[%clk 0:02:53.2]} 12. Rg1 {[%clk 0:02:35]} 12... Ng8 {[%clk 0:02:52.8]} 13.
h4 {[%clk 0:02:27.1]} 13... Nc5 {[%clk 0:02:48.1]} 14. h5 {[%clk 0:02:18.9]}
14... g5 {[%clk 0:02:46.4]} 15. Nd2 {[%clk 0:02:13.8]} 15... Bd7 {[%clk
0:02:37.1]} 16. b3 {[%clk 0:01:48.2]} 16... Nf6 {[%clk 0:02:35.2]} 17. Qc2
{[%clk 0:01:45.9]} 17... Ne8 {[%clk 0:02:34.8]} 18. a3 {[%clk 0:01:45.7]} 18...
c6 {[%clk 0:02:30]} 19. f3 {[%clk 0:01:43.7]} 19... Nc7 {[%clk 0:02:28.5]} 20.
Kf2 {[%clk 0:01:36.1]} 20... cxd5 {[%clk 0:02:23.2]} 21. cxd5 {[%clk 0:01:26.4]}
21... Rfc8 {[%clk 0:02:21.4]} 22. b4 {[%clk 0:01:22.6]} 22... N5a6 {[%clk
0:02:20.6]} 23. Qb3 {[%clk 0:01:15.6]} 23... Kg8 {[%clk 0:02:15.2]} 24. Nc4
{[%clk 0:01:06.1]} 24... Rf8 {[%clk 0:01:41.5]} 25. Nb6 {[%clk 0:00:52.5]} 25...
Rab8 {[%clk 0:01:38.7]} 26. Rgd1 {[%clk 0:00:23.6]} 26... Na8 {[%clk 0:01:27.3]}
27. Nc4 {[%clk 0:00:10]} 27... axb4 {[%clk 0:01:25.6]} 28. axb4 {[%clk
0:00:10.9]} 28... Rfc8 {[%clk 0:01:25.6]} 29. Rdc1 {[%clk 0:00:05.7]} 29... Bf8
{[%clk 0:01:16.7]} 30. Nb6 {[%clk 0:00:05.5]} 30... Nxb6 {[%clk 0:01:15.8]} 31.
Bxb6 {[%clk 0:00:06.1]} 31... Qe8 {[%clk 0:01:13.6]} 32. Bxa6 {[%clk 0:00:05.3]}
32... bxa6 {[%clk 0:01:13.5]} 33. Rxa6 {[%clk 0:00:04.5]} 33... Bb5 {[%clk
0:01:11.3]} 0-1

[Event "Early-Titled-Tuesday-Blitz-April-02-2024"]
[Site "Chess.com"]
[Date "2024.04.02"]
[Round "9"]
[White "HanSchut"]
[Black "Massakru"]
[Result "0-1"]
[WhiteElo "2257"]
[BlackElo "2386"]
[TimeControl "180+1"]
[EndTime "9:44:17 PDT"]
[Termination "Massakru won by resignation"]

1. e4 {[%clk 0:03:00.9]} 1... e5 {[%clk 0:02:59.7]} 2. Nf3 {[%clk 0:03:00.7]}
2... Nc6 {[%clk 0:03:00.3]} 3. Bc4 {[%clk 0:03:01.2]} 3... Nf6 {[%clk
0:02:59.7]} 4. d4 {[%clk 0:03:01]} 4... exd4 {[%clk 0:02:58.3]} 5. e5 {[%clk
0:03:01.9]} 5... d5 {[%clk 0:02:58.3]} 6. Bb5 {[%clk 0:03:02.3]} 6... Ne4 {[%clk
0:02:58.8]} 7. Nxd4 {[%clk 0:03:02.4]} 7... Bd7 {[%clk 0:02:59.4]} 8. Bxc6
{[%clk 0:03:02.4]} 8... bxc6 {[%clk 0:02:59.8]} 9. O-O {[%clk 0:03:02.5]} 9...
Bc5 {[%clk 0:03:00.3]} 10. f3 {[%clk 0:03:02.9]} 10... Ng5 {[%clk 0:03:00.7]}
11. Be3 {[%clk 0:03:03.4]} 11... O-O {[%clk 0:02:55.3]} 12. f4 {[%clk
0:03:03.7]} 12... Ne4 {[%clk 0:02:54.9]} 13. Nd2 {[%clk 0:03:04.4]} 13... Nxd2
{[%clk 0:02:53.6]} 14. Qxd2 {[%clk 0:03:05.3]} 14... Bb6 {[%clk 0:02:53.4]} 15.
Nb3 {[%clk 0:03:05.2]} 15... f6 {[%clk 0:02:51]} 16. Qc3 {[%clk 0:03:01.7]}
16... fxe5 {[%clk 0:02:45.7]} 17. fxe5 {[%clk 0:03:02.6]} 17... Qh4 {[%clk
0:02:39.4]} 18. Bc5 {[%clk 0:02:52]} 18... h6 {[%clk 0:02:18.2]} 19. Kh1 {[%clk
0:02:49.9]} 19... Rxf1+ {[%clk 0:02:12.7]} 20. Rxf1 {[%clk 0:02:48.9]} 20... Qc4
{[%clk 0:02:08.5]} 21. Qf3 {[%clk 0:02:18]} 21... Bxc5 {[%clk 0:02:06.1]} 22.
Nxc5 {[%clk 0:02:14.3]} 22... Bg4 {[%clk 0:01:55.1]} 23. Qf7+ {[%clk 0:02:03.8]}
23... Kh8 {[%clk 0:01:47.7]} 24. Nd3 {[%clk 0:01:15.8]} 24... Be2 {[%clk
0:01:20.5]} 25. Rf2 {[%clk 0:01:03]} 25... Qxc2 {[%clk 0:01:12.8]} 26. Ne1
{[%clk 0:00:23.3]} 26... Qd1 {[%clk 0:01:06.6]} 27. h3 {[%clk 0:00:21.1]} 27...
Qxe1+ {[%clk 0:01:06.3]} 28. Kh2 {[%clk 0:00:21.6]} 28... Bh5 {[%clk 0:01:01.3]}
29. Qf4 {[%clk 0:00:13.7]} 29... Re8 {[%clk 0:00:59]} 30. g4 {[%clk 0:00:13]}
30... Bg6 {[%clk 0:00:57.2]} 31. e6 {[%clk 0:00:08.1]} 31... Qxe6 {[%clk
0:00:54.6]} 0-1

[Event "Early-Titled-Tuesday-Blitz-April-02-2024"]
[Site "Chess.com"]
[Date "2024.04.02"]
[Round "9"]
[White "ChempionBg"]
[Black "LeoLV10"]
[Result "0-1"]
[WhiteElo "2307"]
[BlackElo "2511"]
[TimeControl "180+1"]
[EndTime "9:44:19 PDT"]
[Termination "LeoLV10 won by checkmate"]

1. d4 {[%clk 0:03:00.9]} 1... Nf6 {[%clk 0:02:59.8]} 2. c4 {[%clk 0:03:01]} 2...
e6 {[%clk 0:02:59.9]} 3. Nf3 {[%clk 0:03:01.6]} 3... c5 {[%clk 0:02:59.9]} 4. d5
{[%clk 0:03:00.1]} 4... exd5 {[%clk 0:03:00.8]} 5. cxd5 {[%clk 0:02:59.8]} 5...
d6 {[%clk 0:03:01.6]} 6. Nc3 {[%clk 0:02:59.6]} 6... g6 {[%clk 0:02:58.2]} 7. a4
{[%clk 0:02:59.7]} 7... Bg7 {[%clk 0:02:57.8]} 8. e4 {[%clk 0:03:00.3]} 8... O-O
{[%clk 0:02:57.9]} 9. Be2 {[%clk 0:02:59.3]} 9... Re8 {[%clk 0:02:58]} 10. Nd2
{[%clk 0:02:58.6]} 10... Na6 {[%clk 0:02:54.6]} 11. O-O {[%clk 0:02:57.9]} 11...
Nb4 {[%clk 0:02:54.9]} 12. h3 {[%clk 0:02:55.4]} 12... a6 {[%clk 0:02:46.2]} 13.
f4 {[%clk 0:02:48.6]} 13... Rb8 {[%clk 0:02:34.3]} 14. a5 {[%clk 0:02:36.1]}
14... Bd7 {[%clk 0:02:29.9]} 15. Nc4 {[%clk 0:02:30.3]} 15... Bb5 {[%clk
0:02:22.4]} 16. Nxb5 {[%clk 0:02:03.7]} 16... axb5 {[%clk 0:02:23.3]} 17. Nxd6
{[%clk 0:02:03.7]} 17... Qxd6 {[%clk 0:02:19.2]} 18. e5 {[%clk 0:02:03.8]} 18...
Qd7 {[%clk 0:02:00.6]} 19. exf6 {[%clk 0:02:01.9]} 19... Bxf6 {[%clk 0:02:01.5]}
20. Bf3 {[%clk 0:01:50.6]} 20... Bd4+ {[%clk 0:02:00.5]} 21. Kh1 {[%clk
0:01:49.6]} 21... Nxd5 {[%clk 0:01:59.7]} 22. f5 {[%clk 0:01:45.4]} 22... Ne3
{[%clk 0:01:38.4]} 23. Bxe3 {[%clk 0:01:42.6]} 23... Rxe3 {[%clk 0:01:39.3]} 24.
fxg6 {[%clk 0:01:38.3]} 24... hxg6 {[%clk 0:01:40.2]} 25. a6 {[%clk 0:01:30.8]}
25... bxa6 {[%clk 0:01:41.1]} 26. Rxa6 {[%clk 0:01:29.8]} 26... Kg7 {[%clk
0:01:29.3]} 27. Qa1 {[%clk 0:01:13.2]} 27... Rh8 {[%clk 0:01:25.7]} 28. Kh2
{[%clk 0:00:42.7]} 28... Qc7+ {[%clk 0:01:18.1]} 29. Kh1 {[%clk 0:00:38.8]}
29... Qg3 {[%clk 0:01:15.6]} 30. Bg4 {[%clk 0:00:12.7]} 30... Qxg4 {[%clk
0:01:14.7]} 31. Rxf7+ {[%clk 0:00:06.4]} 31... Kh6 {[%clk 0:01:09.8]} 32. hxg4
{[%clk 0:00:04.9]} 32... Kg5+ {[%clk 0:01:09.8]} 33. Kg1 {[%clk 0:00:01.7]}
33... Re1# {[%clk 0:01:09.9]} 0-1